bitfinex-derivatives/quotes_BTCF0:USTF0_20250504
["timestamp","ask_amount","ask_price","bid_price","bid_amount"]
[1746354509146,0.0342,95447.0,95446.0,0.71475839]
[1746354509452,0.2437298,95447.0,95446.0,0.71475839]
[1746354509656,0.0342,95447.0,95446.0,0.71475839]
[1746354510353,0.2437298,95447.0,95446.0,0.71475839]
[1746354510655,0.0342,95447.0,95446.0,0.71475839]
[1746354516058,0.2437298,95447.0,95446.0,0.71475839]
[1746354516456,0.0342,95447.0,95446.0,0.71475839]
[1746354521565,0.2437298,95447.0,95446.0,0.71475839]
[1746354521760,0.0342,95447.0,95446.0,0.71475839]
[1746354522157,0.2437298,95447.0,95446.0,0.71475839]
[1746354523058,0.0342,95447.0,95446.0,0.71475839]
[1746354524359,0.0342,95447.0,95446.0,1.07555839]
[1746354524774,0.0342,95447.0,95446.0,0.71475839]
[1746354524963,0.0342,95447.0,95446.0,1.07555839]
[1746354525158,0.0342,95447.0,95446.0,0.7304463]
[1746354525159,0.3137298,95447.0,95446.0,0.7304463]
[1746354525563,0.3776498,95447.0,95446.0,0.7304463]
[1746354526367,0.4956498,95447.0,95446.0,0.7304463]
[1746354528169,0.4956498,95447.0,95446.0,0.3638]
[1746354528872,0.4956498,95447.0,95446.0,0.003]
[1746354535873,0.5508498,95447.0,95446.0,0.003]
[1746354536068,0.5956498,95447.0,95446.0,0.003]
[1746354536469,0.5662498,95447.0,95446.0,0.003]
[1746354536869,0.5956498,95447.0,95446.0,0.003]
[1746354537377,0.5508498,95447.0,95446.0,0.003]
[1746354537775,0.5956498,95447.0,95446.0,0.003]
[1746354537974,0.4956498,95447.0,95446.0,0.003]
[1746354539375,0.2095386,95444.0,95442.0,0.01571]
[1746354539578,0.2295364,95444.0,95443.0,0.067]
[1746354539875,0.2443333,95446.0,95445.0,0.2095342]
[1746354541073,0.2115386,95444.0,95443.0,0.2095373]
[1746354541479,0.2085386,95444.0,95443.0,0.27811739]
[1746354541670,0.2433386,95444.0,95443.0,0.27811739]
[1746354542280,0.0378,95444.0,95443.0,0.27911739]
[1746354542478,0.06392,95447.0,95446.0,0.209532]
[1746354542876,0.06392,95450.0,95449.0,0.2619064]
[1746354543074,0.2734433,95450.0,95449.0,0.40088649]
[1746354543277,0.2734433,95450.0,95449.0,0.34850559]
[1746354544681,0.2764433,95450.0,95449.0,0.35050559]
[1746354545473,0.06692,95450.0,95449.0,0.35050559]
[1746354545783,0.06692,95450.0,95449.0,0.71130559]
[1746354546279,0.003,95450.0,95449.0,0.71130559]
[1746354546473,0.2125233,95450.0,95449.0,0.71130559]
[1746354546674,0.003,95450.0,95449.0,0.71130559]
[1746354546974,0.2125233,95450.0,95449.0,0.71130559]
[1746354547583,0.003,95450.0,95449.0,0.71130559]
[1746354553888,0.036,95451.0,95450.0,0.2095233]
[1746354554185,0.2455211,95451.0,95450.0,0.27810339]
[1746354554374,0.2455211,95451.0,95450.0,0.31140339]
[1746354554980,0.2465211,95451.0,95450.0,0.31240339]
[1746354555177,0.2495211,95451.0,95450.0,0.31340339]
[1746354556186,0.04,95451.0,95450.0,0.31340339]
[1746354557180,0.2495211,95451.0,95450.0,0.31340339]
[1746354558291,0.04,95451.0,95450.0,0.31340339]
[1746354559485,0.04,95451.0,95450.0,0.2448233]
[1746354559683,0.04,95451.0,95450.0,0.31340339]
[1746354560384,0.1439279,95462.0,95461.0,0.2094991]
[1746354560589,0.3534248,95462.0,95461.0,0.27807919]
[1746354560891,0.30155377,95462.0,95461.0,0.27807919]
[1746354561391,0.30155377,95462.0,95461.0,0.10188009]
[1746354561689,0.33505377,95462.0,95461.0,0.10188009]
[1746354561991,0.33905377,95462.0,95461.0,0.10288009]
[1746354562305,0.34005377,95462.0,95461.0,0.10488009]
[1746354563577,0.29454587,95462.0,95461.0,0.10488009]
[1746354564685,0.29454587,95462.0,95461.0,0.31437919]
[1746354565493,0.29454587,95462.0,95461.0,0.10488009]
[1746354565992,0.073,95462.0,95461.0,0.31437919]
[1746354566795,0.2824969,95462.0,95461.0,0.31437919]
[1746354567594,0.073,95462.0,95461.0,0.10488009]
[1746354567797,0.2824969,95462.0,95461.0,0.31437919]
[1746354567991,0.073,95462.0,95461.0,0.31437919]
[1746354568596,0.2824969,95462.0,95461.0,0.31437919]
[1746354570398,0.2824969,95462.0,95461.0,0.10488009]
[1746354570900,0.2824969,95462.0,95461.0,0.003]
[1746354572400,0.3463769,95462.0,95461.0,0.2124991]
[1746354574598,0.2824969,95462.0,95461.0,0.2124991]
[1746354574795,0.13688,95462.0,95461.0,0.28107919]
[1746354576598,0.3463769,95462.0,95461.0,0.28107919]
[1746354582803,0.3463769,95462.0,95461.0,0.35167919]
[1746354583913,0.2824969,95462.0,95461.0,0.35167919]
[1746354585224,0.0395,95462.0,95461.0,0.35167919]
[1746354586228,0.0015,95465.0,95464.0,0.2094925]
[1746354586527,0.0015,95465.0,95464.0,0.27807259]
[1746354586923,0.2109903,95465.0,95464.0,0.27807259]
[1746354587122,0.2109903,95465.0,95464.0,0.34857259]
[1746354587428,0.2119903,95465.0,95464.0,0.35057259]
[1746354587630,0.0025,95465.0,95464.0,0.35057259]
[1746354588320,0.0045,95465.0,95464.0,0.35057259]
[1746354588923,0.0045,95465.0,95464.0,0.45532459]
[1746354589230,0.0045,95465.0,95464.0,0.57332459]
[1746354590524,0.0045,95465.0,95464.0,2.07332459]
[1746354591227,0.0045,95465.0,95464.0,2.13332459]
[1746354592836,0.0045,95465.0,95464.0,2.49997089]
[1746354593331,0.0045,95465.0,95464.0,2.45997089]
[1746354594129,0.0045,95465.0,95464.0,2.34197089]
[1746354594733,0.0045,95465.0,95464.0,2.21721889]
[1746354594934,0.0736,95465.0,95464.0,2.21721889]
[1746354595233,0.0736,95465.0,95464.0,0.71721889]
[1746354600637,0.0736,95465.0,95464.0,1.07801889]
[1746354601238,0.08554318,95465.0,95464.0,1.07801889]
[1746354601942,0.29503348,95465.0,95464.0,1.04201889]
[1746354602234,0.33843348,95465.0,95464.0,0.7294463]
[1746354602539,0.3264903,95465.0,95464.0,0.9389388]
[1746354605331,0.33864027,95465.0,95464.0,0.9389388]
[1746354607144,0.45664027,95465.0,95464.0,0.9389388]
[1746354608639,1.07039227,95465.0,95464.0,0.3686463]
[1746354608837,0.2094991,95461.0,95460.0,0.01571]
[1746354609040,0.2095211,95451.0,95444.0,0.2095348]
[1746354609245,0.7403211,95451.0,95444.0,0.2095358]
[1746354609438,0.7403211,95451.0,95440.0,0.0621463]
[1746354609835,0.8097211,95451.0,95440.0,0.0621463]
[1746354610039,0.2095342,95446.0,95445.0,0.0523835]
[1746354610343,0.2395342,95446.0,95445.0,0.0523835]
[1746354610534,0.30107524,95446.0,95445.0,0.27737327]
[1746354610940,0.30007524,95446.0,95445.0,0.22498977]
[1746354611139,0.41807524,95446.0,95445.0,0.22498977]
[1746354611341,0.41707524,95446.0,95445.0,0.01545557]
[1746354611640,0.2085342,95445.0,95444.0,0.21349524]
[1746354611837,0.2285342,95445.0,95444.0,0.42303164]
[1746354612046,0.2940342,95445.0,95444.0,0.42303164]
[1746354612241,0.4120342,95445.0,95444.0,0.42303164]
[1746354612943,0.4120342,95445.0,95444.0,0.42603164]
[1746354613144,0.4120342,95445.0,95444.0,0.21649524]
[1746354613345,0.8728342,95445.0,95444.0,0.21649524]
[1746354613551,0.4120342,95445.0,95444.0,0.21649524]
[1746354613852,0.5130342,95445.0,95444.0,0.21649524]
[1746354614150,0.9978062,95445.0,95444.0,1e-07]
[1746354614350,1.6678062,95445.0,95444.0,1e-07]
[1746354614745,1.9178062,95445.0,95444.0,1e-07]
[1746354615344,1.8730062,95445.0,95444.0,1e-07]
[1746354615650,1.9178062,95445.0,95444.0,1e-07]
[1746354615849,1.6678062,95445.0,95444.0,1e-07]
[1746354618154,1.7316462,95445.0,95444.0,1e-07]
[1746354620958,2.4532462,95445.0,95444.0,1e-07]
[1746354628465,2.3484742,95445.0,95444.0,1e-07]
[1746354628656,2.4532462,95445.0,95444.0,1e-07]
[1746354635679,2.3484742,95445.0,95444.0,1e-07]
[1746354635868,2.4532462,95445.0,95444.0,1e-07]
[1746354639071,1.8709742,95445.0,95444.0,1e-07]
[1746354639279,1.3463342,95445.0,95444.0,0.06858019]
[1746354639472,0.9536,95445.0,95444.0,0.52811659]
[1746354639673,0.6198,95445.0,95444.0,0.52811659]
[1746354639873,0.8293342,95445.0,95444.0,0.52811659]
[1746354640179,0.7113342,95445.0,95444.0,0.64611659]
[1746354640380,0.5018,95445.0,95444.0,0.71671659]
[1746354640783,0.7113342,95445.0,95444.0,0.73230317]
[1746354642380,0.7113342,95445.0,95444.0,0.48230317]
[1746354643483,0.7113342,95445.0,95444.0,0.46671659]
[1746354646387,0.3505342,95445.0,95444.0,0.46671659]
[1746354646783,0.3505342,95445.0,95444.0,0.25718019]
[1746354647782,0.3505342,95445.0,95444.0,0.46671659]
[1746354648992,0.141,95445.0,95444.0,0.46671659]
[1746354649490,0.3505342,95445.0,95444.0,0.3981365]
[1746354649683,0.141,95445.0,95444.0,0.46671659]
[1746354650193,0.3505342,95445.0,95444.0,0.46671659]
[1746354650384,0.2105342,95445.0,95444.0,0.46671659]
[1746354652491,0.001,95445.0,95444.0,0.46671659]
[1746354654286,0.001,95445.0,95444.0,0.34871659]
[1746354655894,0.2105342,95445.0,95444.0,0.34871659]
[1746354656894,0.001,95445.0,95444.0,0.34871659]
[1746354658093,0.0638,95458.0,95457.0,0.2095079]
[1746354658298,0.6533057,95458.0,95457.0,0.27808799]
[1746354658783,0.4438,95458.0,95457.0,0.27808799]
[1746354659098,0.0015,95465.0,95464.0,0.2094925]
[1746354659296,0.0315,95465.0,95464.0,0.63887259]
[1746354659497,0.2109903,95465.0,95464.0,0.74362459]
[1746354659995,0.2109903,95465.0,95464.0,0.81252459]
[1746354660195,0.2149903,95465.0,95464.0,0.81352459]
[1746354660502,0.0055,95465.0,95464.0,0.81352459]
[1746354660889,0.01193013,95484.0,95464.0,0.66617839]
[1746354661083,0.006639,95477.0,95476.0,0.27804629]
[1746354661288,0.006639,95477.0,95476.0,0.38278229]
[1746354661489,0.006639,95477.0,95476.0,0.45318229]
[1746354662197,0.007639,95477.0,95476.0,0.45318229]
[1746354662389,0.014639,95477.0,95476.0,0.45418229]
[1746354662799,0.1332988,95489.0,95488.0,0.2094399]
[1746354662997,0.1332988,95489.0,95488.0,0.63881999]
[1746354663195,0.2512988,95489.0,95488.0,0.74354399]
[1746354663391,0.118,95489.0,95488.0,0.74354399]
[1746354664691,0.121,95489.0,95488.0,0.74454399]
[1746354665596,0.127,95489.0,95488.0,0.74554399]
[1746354666100,0.126,95489.0,95488.0,0.74454399]
[1746354669190,0.126,95489.0,95488.0,0.63981999]
[1746354671494,0.3454377,95489.0,95488.0,0.001]
[1746354671698,0.3654377,95489.0,95488.0,0.001]
[1746354672415,0.4342377,95489.0,95488.0,0.001]
[1746354672909,0.4342377,95489.0,95488.0,0.2104399]
[1746354674003,0.2248,95489.0,95488.0,0.27901999]
[1746354674210,0.1948,95489.0,95488.0,0.27901999]
[1746354674400,0.1948,95489.0,95488.0,0.31411999]
[1746354674802,0.1594,95489.0,95488.0,0.31411999]
[1746354677511,0.001,95496.0,95495.0,0.2094245]
[1746354677710,0.001,95496.0,95495.0,0.27800459]
[1746354678102,0.119,95496.0,95495.0,0.27800459]
[1746354679012,0.124,95496.0,95495.0,0.27800459]
[1746354679208,0.128,95496.0,95495.0,0.27800459]
[1746354679409,0.128,95496.0,95495.0,0.31310459]
[1746354680018,0.128,95496.0,95495.0,0.27800459]
[1746354680508,0.128,95496.0,95495.0,0.31310459]
[1746354680710,0.128,95496.0,95495.0,0.41782059]
[1746354682014,0.128,95496.0,95495.0,0.31310459]
[1746354682327,0.128,95496.0,95495.0,0.32310459]
[1746354684005,0.128,95496.0,95495.0,1.82310459]
[1746354684818,0.3774223,95496.0,95495.0,1.5]
[1746354685016,0.2094377,95489.0,95488.0,0.4229463]
[1746354685216,0.2294377,95489.0,95488.0,0.4229463]
[1746354685511,0.2294377,95489.0,95488.0,0.0621463]
[1746354685907,0.2990377,95489.0,95488.0,0.0621463]
[1746354686221,0.4190377,95489.0,95488.0,0.0621463]
[1746354686409,0.4220377,95489.0,95488.0,0.0621463]
[1746354686609,0.4220377,95489.0,95488.0,0.2715862]
[1746354687013,0.2126,95489.0,95488.0,0.2715862]
[1746354689414,0.2126,95489.0,95488.0,0.2094399]
[1746354689915,0.1926,95489.0,95488.0,0.27801999]
[1746354690117,0.1926,95489.0,95488.0,0.31281999]
[1746354692713,0.1926,95489.0,95488.0,0.41281999]
[1746354692908,0.1926,95489.0,95488.0,0.34281999]
[1746354693413,0.1592,95489.0,95488.0,0.44754399]
[1746354695319,0.1592,95489.0,95488.0,0.50969029]
[1746354696227,0.1592,95489.0,95488.0,0.40496629]
[1746354697525,0.123,95489.0,95488.0,0.57969029]
[1746354697725,0.123,95489.0,95488.0,0.50969029]
[1746354698811,0.0704,95494.0,95493.0,0.2094289]
[1746354699025,0.0704,95494.0,95493.0,0.63880899]
[1746354699227,0.1884,95494.0,95493.0,0.63880899]
[1746354699724,0.1884,95494.0,95493.0,0.71050899]
[1746354700111,0.1924,95494.0,95493.0,0.71050899]
[1746354701624,0.124,95494.0,95493.0,0.71050899]
[1746354701921,0.124,95494.0,95493.0,2.21050899]
[1746354702325,0.124,95494.0,95493.0,2.32050899]
[1746354702521,0.124,95494.0,95493.0,2.31050899]
[1746354702724,0.124,95494.0,95493.0,2.23050899]
[1746354703118,0.1575,95494.0,95493.0,2.23050899]
[1746354704320,0.1575,95494.0,95493.0,2.21050899]
[1746354704626,0.1575,95494.0,95493.0,0.67570899]
[1746354707027,0.1575,95494.0,95493.0,0.73785529]
[1746354708030,0.1575,95494.0,95493.0,0.70095529]
[1746354715025,0.1675,95494.0,95493.0,0.49152639]
[1746354715330,0.1575,95494.0,95493.0,0.70095529]
[1746354716634,0.15768492,95494.0,95493.0,0.70095529]
[1746354722129,0.15768492,95494.0,95493.0,0.79095529]
[1746354722436,0.15768492,95494.0,95493.0,0.72095529]
[1746354723331,0.15768492,95494.0,95493.0,0.70095529]
[1746354724134,0.19298492,95494.0,95493.0,0.70095529]
[1746354724329,0.15768492,95494.0,95493.0,0.70095529]
[1746354726040,0.15768492,95494.0,95493.0,0.72095529]
[1746354726240,0.15768492,95494.0,95493.0,0.71095529]
[1746354728335,0.15768492,95494.0,95493.0,0.79095529]
[1746354736445,0.15768492,95494.0,95493.0,0.78095529]
[1746354742361,0.2094011,95506.0,95493.0,0.78095529]
[1746354742362,0.0638,95525.0,95515.0,0.0523451]
[1746354742643,0.0357,95505.0,95504.0,0.2094048]
[1746354743242,0.1537,95505.0,95504.0,0.2094048]
[1746354744454,0.2137,95505.0,95504.0,0.2094048]
[1746354744651,0.3631026,95505.0,95504.0,0.2094048]
[1746354745046,0.3631026,95505.0,95503.0,0.3608]
[1746354745047,0.2094179,95498.0,95497.0,0.15999506]
[1746354745240,0.3664179,95498.0,95497.0,0.36941516]
[1746354745439,0.3564179,95498.0,95497.0,0.36941516]
[1746354745646,0.2094377,95489.0,95488.0,0.21349524]
[1746354745948,0.21868255,95489.0,95488.0,0.21349524]
[1746354746156,0.33368255,95489.0,95488.0,0.21349524]
[1746354746455,0.33068255,95489.0,95488.0,0.21349524]
[1746354746639,0.40428255,95489.0,95488.0,0.21349524]
[1746354747053,0.45948255,95489.0,95488.0,0.21349524]
[1746354747459,0.40428255,95489.0,95488.0,0.21349524]
[1746354747954,0.40628255,95489.0,95488.0,0.21349524]
[1746354748248,0.49268255,95489.0,95488.0,0.2289128]
[1746354748454,0.69100655,95489.0,95488.0,0.2289128]
[1746354748654,0.69100655,95489.0,95488.0,0.2443783]
[1746354748856,0.69100655,95489.0,95488.0,0.24437474]
[1746354749050,0.64620655,95489.0,95488.0,0.0308795]
[1746354749252,0.2094465,95485.0,95484.0,0.2251481]
[1746354749453,0.2294465,95485.0,95484.0,0.2251481]
[1746354749653,0.2294465,95485.0,95484.0,0.0157]
[1746354750058,0.2649465,95485.0,95484.0,0.0157]
[1746354750362,0.3829465,95485.0,95484.0,0.03113764]
[1746354750546,0.3849465,95485.0,95484.0,0.04660588]
[1746354750749,0.3849465,95485.0,95484.0,0.03090588]
[1746354751049,0.37709027,95485.0,95484.0,0.03090588]
[1746354751358,0.37809027,95485.0,95484.0,0.01546824]
[1746354751748,0.2094508,95483.0,95482.0,0.00157097]
[1746354751948,0.2194508,95483.0,95482.0,0.00157097]
[1746354752149,0.3374508,95483.0,95482.0,0.00157097]
[1746354752950,0.3384508,95483.0,95482.0,0.21102397]
[1746354753150,0.3404508,95483.0,95482.0,0.21102397]
[1746354753359,0.3304508,95483.0,95482.0,0.21102397]
[1746354755162,0.3304508,95483.0,95482.0,0.00157097]
[1746354755458,0.3304508,95483.0,95482.0,0.21102397]
[1746354755758,0.3304508,95483.0,95482.0,0.00157097]
[1746354757254,0.3304508,95483.0,95482.0,0.03687097]
[1746354757852,0.3304508,95483.0,95482.0,0.24632397]
[1746354762762,0.121,95483.0,95482.0,0.24632397]
[1746354763263,0.1913,95483.0,95482.0,0.24632397]
[1746354764662,0.4507508,95483.0,95482.0,0.00157097]
[1746354771371,0.2094574,95480.0,95479.0,0.10354006]
[1746354771766,0.2094574,95480.0,95479.0,0.17212015]
[1746354772070,0.3274574,95480.0,95479.0,0.17212015]
[1746354772668,0.3284574,95480.0,95479.0,0.17212015]
[1746354773161,0.3284574,95480.0,95479.0,0.17312015]
[1746354774670,0.3284574,95480.0,95479.0,0.24152015]
[1746354775772,0.119,95480.0,95479.0,0.27582015]
[1746354777676,0.3284574,95480.0,95479.0,0.27582015]
[1746354778476,0.3284574,95480.0,95479.0,0.17228009]
[1746354778975,0.3284574,95480.0,95479.0,0.38173969]
[1746354779170,0.119,95480.0,95479.0,0.38173969]
[1746354780375,0.1882,95480.0,95479.0,0.38173969]
[1746354781176,0.0702,95480.0,95479.0,0.38173969]
[1746354782072,0.1882,95480.0,95479.0,0.38173969]
[1746354782571,0.1543,95480.0,95479.0,0.38173969]
[1746354788878,0.1543,95480.0,95479.0,0.34743969]
[1746354792985,0.7945574,95480.0,95479.0,0.001]
[1746354793675,0.8945574,95480.0,95479.0,0.001]
[1746354793869,0.9296574,95480.0,95479.0,0.001]
[1746354794072,0.8296574,95480.0,95479.0,0.001]
[1746354794679,0.9296574,95480.0,95479.0,0.001]
[1746354794892,0.8296574,95480.0,95479.0,0.001]
[1746354796577,0.8450574,95480.0,95479.0,0.001]
[1746354796777,0.8296574,95480.0,95479.0,0.001]
[1746354798879,1.1796574,95480.0,95479.0,0.001]
[1746354799079,0.9296574,95480.0,95479.0,0.001]
[1746354799877,1.5096574,95480.0,95479.0,0.001]
[1746354802988,1.4648574,95480.0,95479.0,0.001]
[1746354810892,1.3896574,95480.0,95479.0,0.001]
[1746354811094,1.4448574,95480.0,95479.0,0.001]
[1746354812489,1.4896574,95480.0,95479.0,0.001]
[1746354812680,1.0748574,95480.0,95479.0,0.001]
[1746354813085,0.8448574,95480.0,95479.0,0.001]
[1746354813590,0.7896574,95480.0,95479.0,0.001]
[1746354815298,0.7996574,95480.0,95479.0,0.001]
[1746354816392,1.1796574,95480.0,95479.0,1e-07]
[1746354816699,0.2095167,95453.0,95452.0,0.0621463]
[1746354816890,0.2095277,95448.0,95446.0,0.0343]
[1746354817090,0.3531277,95448.0,95446.0,0.0343]
[1746354817290,0.3531277,95448.0,95447.0,0.07015163]
[1746354817796,0.4433277,95448.0,95447.0,0.07015163]
[1746354817985,0.3433277,95448.0,95447.0,0.07015163]
[1746354818393,0.3433277,95448.0,95447.0,0.10595163]
[1746354818695,0.35457524,95448.0,95447.0,0.10595163]
[1746354818895,0.34957524,95448.0,95447.0,0.14135163]
[1746354819095,0.35724482,95448.0,95447.0,0.14135163]
[1746354819596,0.35057524,95448.0,95447.0,0.14835163]
[1746354821499,0.35057524,95448.0,95447.0,0.07715163]
[1746354821697,0.35057524,95448.0,95447.0,0.11175163]
[1746354823500,0.35849626,95448.0,95447.0,0.11175163]
[1746354825393,0.33849626,95448.0,95447.0,0.11175163]
[1746354829304,0.45649626,95448.0,95447.0,0.11175163]
[1746354830100,0.33849626,95448.0,95447.0,0.11175163]
[1746354831394,0.34849626,95448.0,95447.0,0.07715163]
[1746354831798,0.34849626,95448.0,95447.0,0.00857154]
[1746354831799,0.59849626,95448.0,95447.0,0.00857154]
[1746354831999,0.67209626,95448.0,95447.0,0.00857154]
[1746354832197,0.71649626,95448.0,95447.0,0.00857154]
[1746354832406,0.46649626,95448.0,95447.0,0.00857154]
[1746354834200,0.71649626,95448.0,95447.0,0.00857154]
[1746354834398,0.46649626,95448.0,95447.0,0.00857154]
[1746354842718,0.45649626,95448.0,95447.0,0.00857154]
[1746354844912,0.17356856,95448.0,95447.0,0.09259749]
[1746354845109,0.26509626,95448.0,95447.0,0.09259749]
[1746354845520,0.26509626,95448.0,95447.0,0.09260565]
[1746354846220,0.26509626,95448.0,95447.0,0.10815188]
[1746354847319,0.04432102,95448.0,95447.0,0.31768168]
[1746354847620,0.00892102,95448.0,95447.0,0.67848168]
[1746354848512,0.00892102,95448.0,95447.0,0.46895188]
[1746354848721,0.21844872,95448.0,95447.0,0.46895188]
[1746354848918,0.25384872,95448.0,95447.0,0.46895188]
[1746354849120,0.04432102,95448.0,95447.0,0.46895188]
[1746354849320,0.04432102,95448.0,95447.0,0.54145188]
[1746354849517,0.04432102,95448.0,95447.0,0.75098168]
[1746354849718,0.2105277,95448.0,95447.0,0.54145188]
[1746354849930,0.2459277,95448.0,95447.0,0.52599786]
[1746354850221,0.2459277,95448.0,95447.0,0.51045163]
[1746354850721,0.2459277,95448.0,95447.0,0.36197548]
[1746354851422,0.2459277,95448.0,95447.0,0.37744653]
[1746354852622,0.2459277,95448.0,95447.0,0.36197548]
[1746354852814,0.23806881,95448.0,95447.0,0.08797243]
[1746354856020,0.0354,95448.0,95447.0,0.29750223]
[1746354856223,0.06372,95453.0,95452.0,0.2095189]
[1746354856518,0.20952,95452.0,95450.0,0.2095221]
[1746354856722,0.20952,95452.0,95451.0,0.037]
[1746354857119,0.20952,95452.0,95451.0,0.0525284]
[1746354857421,0.20752,95452.0,95451.0,0.0525284]
[1746354857622,0.24222,95452.0,95451.0,0.2973495]
[1746354858115,0.24322,95452.0,95451.0,0.2993495]
[1746354858609,0.24222,95452.0,95451.0,0.2993495]
[1746354859018,0.24222,95452.0,95451.0,0.13699835]
[1746354859220,0.24222,95452.0,95451.0,0.16799835]
[1746354859420,0.24222,95452.0,95451.0,0.18799835]
[1746354859610,0.24222,95452.0,95451.0,0.13799835]
[1746354863019,0.24222,95452.0,95451.0,0.003]
[1746354863523,0.27702,95452.0,95451.0,0.003]
[1746354866423,0.31702,95452.0,95451.0,0.003]
[1746354868726,0.66702,95452.0,95451.0,0.003]
[1746354869029,0.2095408,95442.0,95441.0,0.0621463]
[1746354869226,0.6203408,95442.0,95441.0,0.0621463]
[1746354870015,0.6963408,95442.0,95441.0,0.0651463]
[1746354870217,0.8143408,95442.0,95441.0,0.0681463]
[1746354870828,0.8143408,95442.0,95441.0,0.28164154]
[1746354871229,0.6963408,95442.0,95441.0,0.28164154]
[1746354871530,0.6863408,95442.0,95441.0,0.28164154]
[1746354872631,0.3255408,95442.0,95441.0,0.28164154]
[1746354872926,0.6863408,95442.0,95441.0,0.28164154]
[1746354874120,0.6863408,95442.0,95441.0,0.21949524]
[1746354875435,0.6863408,95442.0,95441.0,0.006]
[1746354877035,0.3255408,95442.0,95441.0,0.006]
[1746354877423,0.3355408,95442.0,95441.0,0.006]
[1746354879339,0.3255408,95442.0,95441.0,0.0778]
[1746354879839,0.3255408,95442.0,95441.0,0.0425]
[1746354881031,0.3255408,95442.0,95441.0,0.006]
[1746354881238,0.2855408,95442.0,95441.0,0.006]
[1746354884839,0.3255408,95442.0,95441.0,0.006]
[1746354887242,0.4435408,95442.0,95441.0,0.006]
[1746354888343,0.8043408,95442.0,95441.0,0.006]
[1746354888735,0.4435408,95442.0,95441.0,0.006]
[1746354888936,0.8043408,95442.0,95441.0,0.006]
[1746354889445,0.2095584,95434.0,95433.0,0.01822773]
[1746354890436,0.2461584,95434.0,95433.0,0.01822773]
[1746354890637,0.2845584,95434.0,95433.0,0.01922773]
[1746354890838,0.209565,95431.0,95430.0,0.12015539]
[1746354891344,0.206565,95431.0,95430.0,0.12015539]
[1746354891944,0.207565,95431.0,95430.0,0.12415539]
[1746354892131,0.208565,95431.0,95430.0,0.17304154]
[1746354893934,0.208565,95431.0,95430.0,0.17684154]
[1746354895448,0.244765,95431.0,95430.0,0.13515539]
[1746354897144,0.244765,95431.0,95430.0,0.17595539]
[1746354898052,0.0382,95431.0,95430.0,0.17595539]
[1746354898941,0.247765,95431.0,95430.0,0.17595539]
[1746354899552,0.247765,95431.0,95430.0,0.53675539]
[1746354900349,0.247765,95431.0,95430.0,0.53295539]
[1746354900538,0.247765,95431.0,95430.0,0.58087513]
[1746354902352,0.247765,95431.0,95430.0,0.57087513]
[1746354903645,0.247765,95431.0,95430.0,0.78437037]
[1746354903847,0.247765,95431.0,95430.0,0.73645063]
[1746354904052,0.247765,95431.0,95430.0,0.78439934]
[1746354905343,0.0382,95431.0,95430.0,0.78439934]
[1746354905653,0.0382,95431.0,95430.0,0.73645063]
[1746354906548,0.0382,95431.0,95430.0,0.69945063]
[1746354907353,0.0754,95431.0,95430.0,0.69945063]
[1746354909154,0.0754,95431.0,95430.0,0.48595539]
[1746354912255,0.284965,95431.0,95430.0,0.48595539]
[1746354914553,0.284965,95431.0,95430.0,0.53388141]
[1746354915158,0.284965,95431.0,95430.0,0.36459648]
[1746354915759,0.284965,95431.0,95430.0,0.31667046]
[1746354916261,0.284965,95431.0,95430.0,0.52623766]
[1746354917159,0.284965,95431.0,95430.0,0.2095672]
[1746354929166,0.0754,95431.0,95430.0,0.2095672]
[1746354929569,0.0382,95431.0,95430.0,0.59435519]
[1746354929876,0.0382,95431.0,95430.0,0.7022685]
[1746354930085,0.0382,95431.0,95430.0,0.8202685]
[1746354930280,0.0382,95431.0,95430.0,0.6056685]
[1746354930677,0.0382,95431.0,95430.0,0.61646807]
[1746354931086,0.0382,95431.0,95430.0,2.11646807]
[1746354932688,0.0382,95431.0,95430.0,2.47726807]
[1746354932989,0.0382,95431.0,95430.0,2.53941437]
[1746354934390,0.0382,95431.0,95430.0,2.75290961]
[1746354936389,0.0382,95431.0,95430.0,2.7049963]
[1746354943199,0.0382,95431.0,95430.0,2.49150106]
[1746354944399,0.0382,95431.0,95430.0,2.13070106]
[1746354944603,0.0382,95431.0,95430.0,2.49150106]
[1746354944993,0.0346,95441.0,95440.0,0.2095452]
[1746354945193,0.0346,95441.0,95440.0,0.6203452]
[1746354945593,0.0346,95441.0,95440.0,2.1203452]
[1746354945901,0.0346,95441.0,95440.0,2.1540452]
[1746354946102,0.0356,95441.0,95440.0,2.1550452]
[1746354946493,0.0366,95441.0,95440.0,2.1550452]
[1746354947899,0.0366,95441.0,95440.0,2.17050175]
[1746354950498,0.0366,95441.0,95440.0,2.23264805]
[1746354951603,0.0366,95441.0,95440.0,2.248149]
[1746354952093,0.46750527,95485.0,95453.0,0.0523788]
[1746354952406,0.0523639,95481.0,95464.0,0.2094925]
[1746354952595,0.17030527,95485.0,95464.0,0.24045]
[1746354952596,0.034,95467.0,95464.0,0.24045]
[1746354952795,0.10670527,95485.0,95465.0,0.2094903]
[1746354952997,0.034,95479.0,95465.0,0.29959125]
[1746354953396,0.034,95479.0,95465.0,0.29968397]
[1746354953800,0.034,95479.0,95465.0,0.31514052]
[1746354954007,0.006,95466.0,95465.0,0.31514052]
[1746354954811,0.012,95466.0,95465.0,0.31614052]
[1746354955009,0.012,95466.0,95465.0,0.31600708]
[1746354956216,0.012,95466.0,95465.0,0.37815338]
[1746354956598,0.012,95466.0,95465.0,0.3472366]
[1746354959612,0.012,95466.0,95465.0,0.37810447]
[1746354959916,0.0701,95473.0,95472.0,0.209475]
[1746354960212,0.0701,95473.0,95472.0,0.58569078]
[1746354960514,0.0701,95473.0,95472.0,0.60114287]
[1746354961509,0.0811,95473.0,95472.0,0.60314287]
[1746354961710,0.0811,95473.0,95472.0,0.58772709]
[1746354961912,0.0811,95473.0,95472.0,0.572275]
[1746354963010,0.0811,95473.0,95472.0,0.602275]
[1746354963310,0.0811,95473.0,95472.0,0.582275]
[1746354965409,0.5702123,95501.0,95485.0,0.2094465]
[1746354965410,0.0358,95486.0,95485.0,0.2094465]
[1746354965615,0.0358,95486.0,95483.0,0.3608]
[1746354965911,0.0358,95486.0,95485.0,0.2094465]
[1746354966118,0.1538,95486.0,95485.0,0.2094465]
[1746354967009,0.1598,95486.0,95485.0,0.2094465]
[1746354967413,0.1598,95486.0,95485.0,0.2104465]
[1746354967618,0.1658,95486.0,95485.0,0.2104465]
[1746354968416,0.13,95486.0,95485.0,0.2104465]
[1746354975728,0.13,95486.0,95485.0,0.24156992]